fUST/lending_fUST_20250821
["ID","MTS","AMOUNT","RATE_DAILY","PERIOD"]
[380440627,1755772244793,-1006.22,0.00020999,2]
[380440628,1755772244802,-1006.22,0.00020999,2]
[380440630,1755772244811,-1006.22,0.00020999,2]
[380440632,1755772244820,-1006.22,0.00020999,2]
[380440634,1755772244829,-1006.22,0.00020999,2]
[380440636,1755772244838,-1006.22,0.00020999,2]
[380440638,1755772244847,-1006.22,0.00020999,2]
[380440640,1755772244856,-871.97847733,0.00020999,2]
[380440642,1755772244864,-871.97847733,0.00020999,2]
[380440643,1755772244874,-500.0,0.00020999,2]
[380440645,1755772244882,-871.97847733,0.00020999,2]
[380440647,1755772244891,-871.97847733,0.00020999,2]
[380440649,1755772244900,-421.074995,0.00020999,2]
[380440651,1755772244910,-871.97847733,0.00020999,2]
[380440653,1755772244919,-871.97847733,0.00020999,2]
[380440655,1755772244928,-871.97847733,0.00020999,2]
[380440657,1755772244938,-871.97847733,0.00020999,2]
[380440659,1755772244947,-871.97847733,0.00020999,2]
[380440661,1755772244957,-500.0,0.00020999,2]
[380440662,1755772244966,-871.97847733,0.00020999,2]
[380440664,1755772244975,-871.97847733,0.00020999,2]
[380440666,1755772244984,-871.97847733,0.00020999,2]
[380440668,1755772244993,-871.97847733,0.00020999,2]
[380440670,1755772245002,-871.97847733,0.00020999,2]
[380440672,1755772245011,-871.97847733,0.00020999,2]
[380440674,1755772245020,-871.97847733,0.00020999,2]
[380440676,1755772245029,-871.97847733,0.00020999,2]
[380440677,1755772245038,-871.97847733,0.00020999,2]
[380440679,1755772245048,-871.97847733,0.00020999,2]
[380440681,1755772245057,-871.97847733,0.00020999,2]
[380440683,1755772245066,-871.97847733,0.00020999,2]
[380440685,1755772245075,-988.24227432,0.00020999,2]
[380440687,1755772245084,-988.24227432,0.00020999,2]
[380440689,1755772245093,-988.24227432,0.00020999,2]
[380440691,1755772245102,-990.64337448,0.00020999,2]
[380440693,1755772245112,-990.64337448,0.00020999,2]
[380440695,1755772245121,-990.64337448,0.00020999,2]
[380440697,1755772245129,-990.64337448,0.00020999,2]
[380440698,1755772245139,-255136.57420549,0.00021,2]
[380440700,1755772245148,-1000.0,0.00021,2]
[380440702,1755772245157,-1000.0,0.00021,2]
[380440704,1755772245166,-1000.0,0.00021,2]
[380440706,1755772245175,-1000.0,0.00021,2]
[380440708,1755772245184,-1007.68024135,0.00021,2]
[380440710,1755772245193,-151.63330362,0.00021,2]
[380440712,1755772245202,-1211.5222257,0.00021,2]
[380440714,1755772245211,-203.21289089,0.00021,2]
[380440716,1755772245221,-9578.59416075,0.00021001,5]
[380440717,1755772245229,-495.0,0.00021012,2]
[380440719,1755772245239,-151.0,0.00021012,2]
[380440721,1755772245248,-151.0,0.00021012,2]
[380440723,1755772245258,-500.0,0.00021012,2]
[380440725,1755772245269,-6757.87068962,0.00021016,2]
[380440727,1755772245278,-151.0,0.00021074,2]
[380440729,1755772245287,-151.0,0.00021074,2]
[380440731,1755772245297,-151.0,0.00021074,2]
[380440733,1755772245306,-504.0,0.00021079,2]
[380440735,1755772245316,-1006.22,0.00021087,2]
[380440737,1755772245326,-1006.22,0.00021087,2]
[380440739,1755772245335,-1006.22,0.00021087,2]
[380440741,1755772245344,-1006.22,0.00021087,2]
[380440743,1755772245353,-1006.22,0.00021087,2]
[380440745,1755772245362,-1006.22,0.00021087,2]
[380440747,1755772245374,-1006.22,0.00021087,2]
[380440749,1755772245383,-1006.23346152,0.00021087,2]
[380440751,1755772245392,-540.92,0.00021095,2]
[380440752,1755772245401,-500.0,0.00021107,2]
[380440754,1755772245411,-653.90491992,0.00021112,2]
[380440756,1755772245420,-844.19128999,0.00021188,2]
[380440758,1755772245429,-160.0,0.00021188,2]
[380440760,1755772245439,-160.0,0.00021188,2]
[380440762,1755772245448,-215.86710461,0.00021189,2]
[380440764,1755772245457,-160.0,0.00021189,2]
[380440766,1755772245466,-232.28399145,0.00021189,2]
[380440768,1755772245476,-160.0,0.00021189,2]
[380440770,1755772245485,-216.95272161,0.00021189,2]
[380440771,1755772245497,-151.0,0.00021248,2]
[380440773,1755772245509,-151.0,0.00021248,2]
[380440775,1755772245518,-495.0,0.00021286,2]
[380440777,1755772245528,-151.0,0.00021286,2]
[380440779,1755772245538,-151.0,0.00021286,2]
[380440781,1755772245547,-500.0,0.00021286,2]
[380440783,1755772245557,-577.11592273,0.0002129,2]
[380440785,1755772245567,-1000.0,0.0002129,2]
[380440787,1755772245577,-503.09442521,0.0002129,2]
[380440789,1755772245587,-5000.0,0.00021311,2]
[380440791,1755772245598,-151.0,0.00021348,2]
[380440793,1755772245607,-151.0,0.00021348,2]
[380440795,1755772245616,-151.0,0.00021348,2]
[380440797,1755772245626,-168.0,0.0002135,2]
[380440798,1755772245635,-347.39457964,0.00021381,2]
[380440800,1755772245644,-512.59694506,0.00021393,2]
[380440802,1755772245654,-332.77917563,0.00021393,2]
[380440804,1755772245664,-1006.958857,0.000214,2]
[380440806,1755772245674,-155.0,0.00021428,2]
[380440808,1755772245683,-326.0,0.00021428,2]
[380440810,1755772245692,-326.0,0.00021428,2]
[380440812,1755772245701,-326.0,0.00021428,2]
[380440814,1755772245710,-326.0,0.00021428,2]
[380440816,1755772245719,-326.0,0.00021428,2]
[380440818,1755772245729,-326.0,0.00021428,2]
[380440820,1755772245739,-326.0,0.00021428,2]
[380440822,1755772245748,-326.0,0.00021428,2]
[380440824,1755772245757,-326.0,0.00021428,2]
[380440825,1755772245766,-326.0,0.00021428,2]
[380440827,1755772245776,-326.0,0.00021428,2]
[380440829,1755772245785,-329.86479115,0.00021428,2]
[380440831,1755772245794,-326.0,0.00021428,2]
[380440833,1755772245803,-326.0,0.00021428,2]
[380440835,1755772245812,-11919.21899592,0.00021432,2]
[380440837,1755772245821,-653.90491992,0.00021439,2]
[380440839,1755772245830,-1000.0,0.00021448,2]
[380440841,1755772245839,-297.0,0.00021451,2]
[380440843,1755772245850,-420.0,0.00021496,2]
[380440845,1755772245859,-3000.0,0.00021498,2]
[380440847,1755772245868,-3150.45265231,0.000215,2]
[380440849,1755772245877,-151.0,0.000215,4]
[380440850,1755772245887,-1000.0,0.00021521,2]
[380440852,1755772245896,-1000.0,0.00021521,2]
[380440854,1755772245905,-1000.0,0.00021521,2]
[380440855,1755772245914,-500.0,0.00021521,2]
[380440857,1755772245924,-212.64944664,0.00021521,2]
[380440858,1755772245933,-161.11718925,0.00021521,2]
[380440859,1755772245943,-1000.0,0.00021521,2]
[380440860,1755772245952,-1000.0,0.00021521,2]
[380440861,1755772245961,-1000.0,0.00021521,2]
[380440862,1755772245970,-1000.0,0.00021521,2]
[380440863,1755772245979,-1000.0,0.00021521,2]
[380440864,1755772245988,-233.18063516,0.00021522,2]
[380440865,1755772245997,-151.0,0.00021522,2]
[380440866,1755772246006,-495.0,0.0002156,2]
[380440867,1755772246015,-153.41097914,0.0002156,2]
[380440868,1755772246024,-250.40021067,0.0002156,2]
[380440869,1755772246034,-408.9287278,0.0002156,2]
[380440870,1755772246043,-151.0,0.000216,3]
[380440871,1755772246052,-151.0,0.000216,4]
[380440872,1755772246062,-1680.0,0.000216,2]
[380440873,1755772246071,-214.19127352,0.00021622,2]
[380440874,1755772246080,-250.36592949,0.00021622,2]
[380440875,1755772246089,-151.0,0.00021622,2]
[380440876,1755772246100,-200.0,0.0002164,2]
[380440877,1755772246109,-540.92,0.00021643,2]
[380440878,1755772246119,-800.0,0.00021644,2]
[380440880,1755772246128,-168.0,0.00021661,2]
[380440882,1755772246138,-297.0,0.00021693,2]
[380440884,1755772246147,-800.0,0.00021752,2]
[380440886,1755772246156,-341.17622956,0.00021755,2]
[380440888,1755772246165,-653.90491992,0.00021765,2]
[380440890,1755772246174,-577.28299934,0.00021771,2]
[380440892,1755772246183,-151.0,0.00021796,2]
[380440894,1755772246193,-4000.0,0.00021799,2]
[380440896,1755772246202,-151.0,0.000218,3]
[380440898,1755772246212,-151.0,0.000218,4]
[380440900,1755772246221,-151.0,0.000218,3]
[380440902,1755772246230,-168.0,0.00021806,2]
[380440904,1755772246240,-800.0,0.00021815,2]
[380440906,1755772246249,-173.4901843,0.00021817,2]
[380440908,1755772246258,-19897.22545671,0.00021821,2]
[380440910,1755772246267,-151.0,0.00021821,2]
[380440912,1755772246277,-495.0,0.00021834,2]
[380440914,1755772246285,-1500.0,0.00021838,2]
[380440916,1755772246295,-203.31926208,0.00021838,2]
[380440918,1755772246304,-1700.0,0.00021861,2]
[380440920,1755772246313,-151.0,0.00021896,2]
[380440922,1755772246323,-150.0,0.000219,2]
[380440924,1755772246332,-277.6,0.000219,2]
[380440926,1755772246341,-1000.0,0.000219,2]
[380440927,1755772246351,-150.248219,0.000219,2]
[380440929,1755772246360,-646.0,0.000219,2]
[380440931,1755772246370,-948.8437078,0.00021906,2]
[380440933,1755772246379,-200.0,0.00021916,2]
[380440935,1755772246389,-356.73797255,0.00021916,2]
[380440937,1755772246398,-160.44628917,0.00021916,2]
[380440939,1755772246407,-16777.46028572,0.00021917,2]
[380440967,1755772246667,-1076.54672896,0.00021917,2]
[380440983,1755772246807,272.825383,0.00027397,120]
[380441217,1755772249027,-0.02276354,0.00021917,2]
[380441220,1755772249040,-54809.90713765,0.00021917,2]
[380441222,1755772249052,-77336.06308413,0.00021917,2]
[380441224,1755772249061,-39440.77866663,0.00021917,2]
[380441226,1755772249071,-47659.87465226,0.00021917,2]
[380441228,1755772249080,-160.0,0.00021917,3]
[380441230,1755772249089,-480.0,0.00021917,3]
[380441232,1755772249099,-480.0,0.00021917,3]
[380441234,1755772249109,-480.0,0.00021917,3]
[380441236,1755772249119,-326.0,0.00021917,2]
[380441238,1755772249128,-326.0,0.00021917,2]
[380441240,1755772249137,-326.0,0.00021917,2]
[380441242,1755772249148,-420.0,0.00021917,3]
[380441244,1755772249157,-480.0,0.00021917,3]
[380441246,1755772249167,-480.0,0.00021917,3]
[380441248,1755772249176,-480.0,0.00021917,3]
[380441250,1755772249185,-480.0,0.00021917,3]
[380441252,1755772249194,-161.0,0.00021917,2]
[380441254,1755772249204,-161.0,0.00021917,2]
[380441256,1755772249213,-161.0,0.00021917,2]
[380441258,1755772249223,-168.62637664,0.00021917,2]
[380441260,1755772249233,-271.9826145,0.00021917,3]
[380441262,1755772249242,-507.30040105,0.00021917,3]
[380441264,1755772249252,-480.0,0.00021917,3]
[380441266,1755772249262,-480.0,0.00021917,3]
[380441268,1755772249271,-480.0,0.00021917,3]
[380441270,1755772249281,-1130.13,0.00021917,3]
[380441272,1755772249290,-480.0,0.00021917,3]
[380441274,1755772249300,-480.0,0.00021917,3]
[380441276,1755772249310,-900.17,0.00021917,3]
[380441278,1755772249319,-480.0,0.00021917,3]
[380441280,1755772249328,-154.83069946,0.00021917,3]
[380441282,1755772249338,-480.0,0.00021917,3]
[380441284,1755772249350,-1763.0,0.00021917,2]
[380441286,1755772249360,-1763.0,0.00021917,2]
[380441288,1755772249369,-480.0,0.00021917,3]
[380441290,1755772249379,-1763.0,0.00021917,2]
[380441291,1755772249389,-1763.0,0.00021917,2]
[380441293,1755772249399,-1763.0,0.00021917,2]
[380441295,1755772249408,-1763.0,0.00021917,2]
[380441297,1755772249417,-1617.77047188,0.00021917,2]
[380441299,1755772249427,-480.0,0.00021917,3]
[380441301,1755772249436,-462.48327103,0.00021917,3]
[380441304,1755772249446,-480.0,0.00021917,3]
[380441305,1755772249455,-480.0,0.00021917,3]
[380441308,1755772249465,-480.0,0.00021917,3]
[380441310,1755772249475,-480.0,0.00021917,3]
[380441311,1755772249484,-480.0,0.00021917,3]
[380441313,1755772249493,-386.13534568,0.00021917,3]
[380441315,1755772249506,-480.0,0.00021917,3]
[380441317,1755772249515,-480.0,0.00021917,3]
[380441319,1755772249524,-480.0,0.00021917,3]
[380441321,1755772249533,-874.6,0.00021917,3]
[380441323,1755772249543,-737.24,0.00021917,3]
[380441325,1755772249554,-480.0,0.00021917,3]
[380441327,1755772249564,-480.0,0.00021917,3]
[380441329,1755772249573,-480.0,0.00021917,3]
[380441331,1755772249583,-480.0,0.00021917,3]
[380441333,1755772249592,-480.0,0.00021917,3]
[380441335,1755772249603,-480.0,0.00021917,3]
[380441337,1755772249612,-480.0,0.00021917,3]
[380441339,1755772249621,-480.0,0.00021917,3]
[380441341,1755772249631,-480.0,0.00021917,3]
[380441343,1755772249640,-480.0,0.00021917,3]
[380441345,1755772249649,-480.0,0.00021917,3]
[380441347,1755772249659,-351.85666343,0.00021917,3]
[380441349,1755772249668,-480.0,0.00021917,3]
[380441351,1755772249677,-453.15940019,0.00021917,3]
[380441353,1755772249686,-480.0,0.00021917,3]
[380441355,1755772249695,-480.0,0.00021917,3]
[380441357,1755772249704,-462.95371069,0.00021917,3]
[380441359,1755772249713,-542.09821973,0.00021917,3]
[380441361,1755772249722,-480.0,0.00021917,3]
[380441363,1755772249731,-480.0,0.00021917,3]
[380441365,1755772249740,-464.25425589,0.00021917,3]
[380441367,1755772249749,-480.0,0.00021917,3]
[380441369,1755772249758,-480.0,0.00021917,3]
[380441371,1755772249767,-480.0,0.00021917,3]
[380441373,1755772249777,-480.0,0.00021917,3]
[380441375,1755772249786,-480.0,0.00021917,3]
[380441377,1755772249795,-480.0,0.00021917,3]
[380441379,1755772249804,-498.1,0.00021917,3]
[380441381,1755772249813,-480.0,0.00021917,3]
[380441383,1755772249823,-480.0,0.00021917,3]
[380441385,1755772249832,-480.0,0.00021917,3]
[380441387,1755772249841,-611.12519428,0.00021917,3]
[380441389,1755772249851,-480.0,0.00021917,3]
[380441391,1755772249860,-480.0,0.00021917,3]
[380441393,1755772249869,-480.0,0.00021917,3]
[380441395,1755772249878,-314.71093575,0.00021917,3]
[380441397,1755772249887,-480.0,0.00021917,3]
[380441399,1755772249896,-701.82,0.00021917,3]
[380441401,1755772249905,-602.53043149,0.00021917,3]
[380441403,1755772249914,-480.0,0.00021917,3]
[380441405,1755772249923,-480.0,0.00021917,3]
[380441407,1755772249932,-480.0,0.00021917,3]
[380441409,1755772249942,-480.0,0.00021917,3]
[380441411,1755772249951,-480.0,0.00021917,3]
[380441413,1755772249960,-480.0,0.00021917,3]
[380441415,1755772249968,-481.95038806,0.00021917,3]
[380441417,1755772249977,-480.0,0.00021917,3]
[380441419,1755772249986,-480.0,0.00021917,3]
[380441421,1755772249996,-480.0,0.00021917,3]
[380441423,1755772250005,-480.0,0.00021917,3]
[380441424,1755772250013,-480.0,0.00021917,3]
[380441426,1755772250023,-480.0,0.00021917,3]
[380441428,1755772250032,-480.0,0.00021917,3]
[380441430,1755772250041,-480.0,0.00021917,3]
[380441432,1755772250050,-714.02,0.00021917,3]
[380441434,1755772250059,-480.0,0.00021917,3]
[380441436,1755772250068,-480.0,0.00021917,3]
[380441438,1755772250077,-480.0,0.00021917,3]
[380441440,1755772250086,-480.0,0.00021917,3]
[380441442,1755772250096,-517.79434674,0.00021917,3]
[380441444,1755772250105,-480.0,0.00021917,3]
[380441446,1755772250114,-480.0,0.00021917,3]
[380441448,1755772250123,-480.0,0.00021917,3]
[380441450,1755772250133,-480.0,0.00021917,3]
[380441452,1755772250142,-480.0,0.00021917,3]
[380441454,1755772250151,-480.0,0.00021917,3]
[380441456,1755772250160,-480.0,0.00021917,3]
[380441458,1755772250169,-480.0,0.00021917,3]
[380441460,1755772250178,-1469.54,0.00021917,3]
[380441462,1755772250187,-480.0,0.00021917,3]
[380441463,1755772250196,-480.0,0.00021917,3]
[380441464,1755772250205,-480.0,0.00021917,3]
[380441465,1755772250214,-481.02,0.00021917,3]
[380441466,1755772250223,-480.49746746,0.00021917,3]
[380441467,1755772250233,-480.0,0.00021917,3]
[380441468,1755772250241,-480.0,0.00021917,3]
[380441469,1755772250250,-480.0,0.00021917,3]
[380441470,1755772250260,-480.0,0.00021917,3]
[380441471,1755772250270,-480.0,0.00021917,3]
[380441472,1755772250278,-218.4495468,0.00021917,3]
[380441473,1755772250288,-480.0,0.00021917,3]
[380441474,1755772250297,-480.0,0.00021917,3]
[380441475,1755772250306,-480.0,0.00021917,3]
[380441476,1755772250315,-480.0,0.00021917,3]
[380441477,1755772250324,-527.27,0.00021917,3]
[380441478,1755772250333,-927.1,0.00021917,3]
[380441480,1755772250342,-480.0,0.00021917,3]
[380441481,1755772250351,-480.0,0.00021917,3]
[380441483,1755772250361,-497.87,0.00021917,3]
[380441485,1755772250370,-480.0,0.00021917,3]
[380441486,1755772250380,-480.0,0.00021917,3]
[380441488,1755772250389,-412.77221946,0.00021917,3]
[380441509,1755772250595,-154.596039,0.0002,2]
[380441511,1755772250606,-154.596039,0.00020463,2]
[380441513,1755772250616,-318.36778054,0.00021917,3]
[380441515,1755772250625,-480.0,0.00021917,3]
[380441517,1755772250634,-480.0,0.00021917,3]
[380441519,1755772250643,-480.0,0.00021917,3]
[380441521,1755772250652,-480.0,0.00021917,3]
[380441523,1755772250662,-440.0,0.00021917,3]
[380441524,1755772250671,-480.0,0.00021917,3]
[380441526,1755772250681,-543.41,0.00021917,3]
[380441528,1755772250690,-480.69,0.00021917,3]
[380441530,1755772250699,-480.0,0.00021917,3]
[380441532,1755772250709,-640.17,0.00021917,3]
[380441534,1755772250718,-480.0,0.00021917,3]
[380441536,1755772250727,-480.0,0.00021917,3]
[380441538,1755772250737,-678.74,0.00021917,3]
[380441540,1755772250747,-480.0,0.00021917,3]
[380441542,1755772250756,-480.0,0.00021917,3]
[380441544,1755772250766,-480.0,0.00021917,3]
[380441546,1755772250775,-480.0,0.00021917,3]
[380441548,1755772250785,-461.35767528,0.00021917,3]
[380441550,1755772250794,-231.53048284,0.00021917,3]
[380441552,1755772250803,-654.77,0.00021917,3]
[380441554,1755772250813,-480.0,0.00021917,3]
[380441556,1755772250822,-480.0,0.00021917,3]
[380441558,1755772250831,-480.0,0.00021917,3]
[380441560,1755772250840,-480.0,0.00021917,3]
[380441562,1755772250850,-480.0,0.00021917,3]
[380441564,1755772250859,-480.0,0.00021917,3]
[380441566,1755772250868,-480.0,0.00021917,3]
[380441582,1755772251018,-480.0,0.00021917,3]
[380441584,1755772251028,-480.0,0.00021917,3]
[380441586,1755772251037,-794.11659453,0.00021917,3]
[380441590,1755772251063,-154.596039,0.00020464,2]
[380441592,1755772251073,-200.96340547,0.00021917,3]
[380441594,1755772251082,-480.0,0.00021917,3]
[380441596,1755772251091,-480.0,0.00021917,3]
[380441598,1755772251100,-480.0,0.00021917,3]
[380441600,1755772251110,-480.0,0.00021917,3]
[380441602,1755772251119,-480.0,0.00021917,3]
[380441604,1755772251128,-480.0,0.00021917,3]
[380441606,1755772251138,-1000.0,0.00021917,3]
[380441608,1755772251146,-927.22,0.00021917,3]
[380441610,1755772251155,-480.0,0.00021917,3]
[380441611,1755772251165,-480.0,0.00021917,3]
[380441613,1755772251174,-480.0,0.00021917,3]
[380441615,1755772251183,-480.0,0.00021917,3]
[380441617,1755772251193,-480.0,0.00021917,2]
[380441619,1755772251202,-481.36320155,0.00021917,3]
[380441621,1755772251212,-620.81935398,0.00021917,3]
[380441659,1755772251596,-154.596039,0.0002,2]
[380441661,1755772251606,-185.237177,0.0002,2]
[380441663,1755772251616,-154.596039,0.0002,2]
[380441665,1755772251625,-154.596039,0.00020463,2]
[380441667,1755772251634,-185.237177,0.00020463,2]
[380441669,1755772251644,-154.596039,0.00020463,2]
[380441671,1755772251653,-154.596039,0.00020464,2]
[380441673,1755772251663,-154.596039,0.00020464,2]
[380441675,1755772251671,-154.596039,0.00020464,2]
[380441677,1755772251680,-154.596039,0.00020464,2]
[380441679,1755772251690,-154.596039,0.00020464,2]
[380441681,1755772251699,-421.25,0.00020876,10]
[380441683,1755772251708,-1082.72064602,0.00021917,3]
[380441685,1755772251718,-480.0,0.00021917,3]
[380441687,1755772251727,-480.0,0.00021917,3]
[380441689,1755772251736,-480.0,0.00021917,3]
[380441691,1755772251746,-480.0,0.00021917,3]
[380441693,1755772251755,-480.0,0.00021917,3]
[380441695,1755772251764,-480.0,0.00021917,3]
[380441697,1755772251774,-480.0,0.00021917,3]
[380441699,1755772251783,-480.0,0.00021917,3]
[380441701,1755772251793,-480.0,0.00021917,3]
[380441703,1755772251802,-919.05,0.00021917,3]
[380441705,1755772251811,-570.46,0.00021917,3]
[380441707,1755772251820,-480.0,0.00021917,3]
[380441709,1755772251829,-480.0,0.00021917,3]
[380441711,1755772251838,-480.0,0.00021917,3]
[380441713,1755772251849,-480.0,0.00021917,3]
[380441715,1755772251858,-205.04137749,0.00021917,3]
[380441717,1755772251868,-480.0,0.00021917,3]
[380441719,1755772251876,-480.0,0.00021917,3]
[380441721,1755772251886,-480.0,0.00021917,3]
[380441723,1755772251895,-480.0,0.00021917,3]
[380441724,1755772251904,-480.0,0.00021917,3]
[380441727,1755772251914,-480.0,0.00021917,3]
[380441728,1755772251923,-480.0,0.00021917,3]
[380441730,1755772251932,-480.0,0.00021917,3]
[380441732,1755772251941,-480.0,0.00021917,3]
[380441734,1755772251950,-480.0,0.00021917,3]
[380441736,1755772251959,-480.0,0.00021917,3]
[380441738,1755772251969,-480.0,0.00021917,3]
[380441740,1755772251980,-480.0,0.00021917,3]
[380441742,1755772251989,-480.0,0.00021917,3]
[380441744,1755772251998,-480.0,0.00021917,3]
[380441746,1755772252008,-480.0,0.00021917,3]
[380441748,1755772252018,-480.0,0.00021917,3]
[380441750,1755772252027,-480.0,0.00021917,3]
[380441752,1755772252037,-974.44,0.00021917,3]
[380441754,1755772252047,-480.0,0.00021917,3]
[380441756,1755772252057,-619.40970675,0.00021917,3]
[380441758,1755772252066,-480.0,0.00021917,3]
[380441760,1755772252076,-800.05,0.00021917,3]
[380441762,1755772252086,-480.0,0.00021917,3]
[380441763,1755772252095,-497.20007844,0.00021917,3]
[380441765,1755772252106,-480.0,0.00021917,3]
[380441768,1755772252115,-618.65712137,0.00021917,3]
[380441769,1755772252125,-480.0,0.00021917,3]
[380441771,1755772252134,-480.0,0.00021917,3]
[380441773,1755772252143,-480.0,0.00021917,3]
[380441775,1755772252153,-480.0,0.00021917,3]
[380441777,1755772252162,-480.0,0.00021917,3]
[380441779,1755772252171,-513.52,0.00021917,3]
[380441781,1755772252180,-480.0,0.00021917,3]
[380441783,1755772252190,-480.0,0.00021917,3]
[380441785,1755772252199,-480.0,0.00021917,3]
[380441787,1755772252208,-2709.69,0.00021917,3]
[380441789,1755772252218,-480.0,0.00021917,3]
[380441791,1755772252227,-526.70901559,0.00021917,3]
[380441793,1755772252236,-480.0,0.00021917,3]
[380441795,1755772252246,-480.0,0.00021917,3]
[380441797,1755772252255,-480.0,0.00021917,3]
[380441799,1755772252264,-480.0,0.00021917,3]
[380441800,1755772252273,-480.0,0.00021917,3]
[380441802,1755772252282,-480.0,0.00021917,3]
[380441804,1755772252292,-480.0,0.00021917,3]
[380441806,1755772252301,-480.0,0.00021917,3]
[380441808,1755772252311,-480.0,0.00021917,3]
[380441810,1755772252320,-480.0,0.00021917,3]
[380441812,1755772252329,-480.0,0.00021917,3]
[380441814,1755772252339,-480.0,0.00021917,3]
[380441816,1755772252348,-431.53447008,0.00021917,3]
[380441818,1755772252358,-923.17,0.00021917,3]
[380441820,1755772252367,-587.04,0.00021917,3]
[380441822,1755772252377,-480.0,0.00021917,3]
[380441824,1755772252387,-480.0,0.00021917,3]
[380441826,1755772252398,-480.0,0.00021917,3]
[380441828,1755772252407,-1030.35,0.00021917,3]
[380441830,1755772252416,-480.0,0.00021917,3]
[380441832,1755772252425,-480.0,0.00021917,3]
[380441834,1755772252434,-480.0,0.00021917,3]
[380441836,1755772252443,-480.0,0.00021917,3]
[380441838,1755772252452,-1367.65,0.00021917,3]
[380441840,1755772252462,-480.0,0.00021917,3]
[380441842,1755772252470,-392.8988206,0.00021917,3]
[380441844,1755772252485,-87.1011794,0.00021917,3]
[380441845,1755772252497,-577.30666104,0.00021917,3]
[380441846,1755772252507,-480.0,0.00021917,3]
[380441847,1755772252516,-480.0,0.00021917,3]
[380441848,1755772252525,-480.0,0.00021917,3]
[380441849,1755772252534,-480.0,0.00021917,3]
[380441850,1755772252544,-457.30422126,0.00021917,3]
[380441851,1755772252553,-1179.0695343,0.00021917,3]
[380441852,1755772252652,-185.237177,0.00020464,2]
[380441853,1755772252661,-894.77265748,0.00021917,3]
[380441854,1755772252678,-625.22780822,0.00021917,3]
[380441855,1755772252687,-480.0,0.00021917,3]
[380441856,1755772252696,-189.36634823,0.00021917,3]
[380441857,1755772252706,-480.0,0.00021917,3]
[380441858,1755772252715,-480.0,0.00021917,3]
[380441859,1755772252725,-420.71469641,0.00021917,3]
[380441860,1755772252734,-38.79809125,0.00021917,3]
[380443909,1755772395711,-220.0,0.00019767,2]
[380443910,1755772404539,983.82016668,0.0002739,120]
[380443911,1755772439370,1122.51699443,0.00019599,2]
[380443912,1755772439393,3877.48300557,0.00019599,2]
[380443913,1755772455744,181.24630208,0.00019599,2]
[380443914,1755772624344,161.791715,0.00013699,2]
[380443916,1755772863384,665.99278955,0.00027397,120]
[380443918,1755772956252,303.672056,0.00019344,2]
[380443920,1755772986072,179.57579227,0.00026137,120]
[380443923,1755773149086,-2195.66450852,0.00019897,2]
[380443924,1755773149107,-262.0,0.00019899,2]
[380443925,1755773149128,-300.0,0.00019899,2]
[380443926,1755773149150,-300.0,0.00019899,2]
[380443927,1755773149169,-300.0,0.00019899,2]
[380443928,1755773149190,-300.0,0.00019899,2]
[380443929,1755773149210,-1200.0,0.00019899,2]
[380443930,1755773149230,-300.0,0.00019899,2]